fUST/lending_fUST_20250806
["ID","MTS","AMOUNT","RATE_DAILY","PERIOD"]
[377671079,1754483438528,-323.1,0.00025553,3]
[377671080,1754483438538,-161.55,0.00025553,3]
[377671081,1754483438547,-484.65,0.00025553,3]
[377671082,1754483438557,-216.47163855,0.00025553,3]
[377671083,1754483438567,-842.45170444,0.00025553,3]
[377671084,1754483438576,-12657.93264304,0.00025553,3]
[377671086,1754483438586,-527.46908335,0.00025553,3]
[377671088,1754483438595,-500.0,0.00025573,2]
[377671090,1754483438605,-500.0,0.00025573,2]
[377671092,1754483438614,-500.0,0.00025573,2]
[377671094,1754483438623,-500.0,0.00025573,2]
[377671097,1754483438633,-157.97588932,0.00025573,2]
[377671098,1754483438642,-500.0,0.00025573,2]
[377671100,1754483438651,-500.0,0.00025573,2]
[377671102,1754483438660,-158.68936938,0.00025573,2]
[377671103,1754483438671,-500.0,0.00025573,2]
[377671104,1754483438681,-500.0,0.00025573,2]
[377671105,1754483438690,-337.73291325,0.00025573,2]
[377671106,1754483438700,-500.0,0.00025573,2]
[377671107,1754483438710,-500.0,0.00025573,2]
[377671108,1754483438721,-500.0,0.00025573,2]
[377671109,1754483438732,-500.0,0.00025573,2]
[377671110,1754483438742,-500.0,0.00025573,2]
[377671111,1754483438751,-500.0,0.00025573,2]
[377671112,1754483438761,-500.0,0.00025573,2]
[377671113,1754483438770,-500.0,0.00025573,2]
[377671114,1754483438780,-504.74302878,0.00025573,2]
[377671115,1754483438790,-500.0,0.00025573,2]
[377671116,1754483438799,-500.0,0.00025573,2]
[377671117,1754483438808,-500.0,0.00025573,2]
[377671118,1754483438818,-500.0,0.00025573,2]
[377671119,1754483438827,-500.0,0.00025573,2]
[377671120,1754483438836,-500.0,0.00025573,2]
[377671121,1754483438846,-500.0,0.00025573,2]
[377671122,1754483438855,-500.0,0.00025573,2]
[377671123,1754483438864,-500.0,0.00025573,2]
[377671124,1754483438873,-436.46782515,0.00025573,2]
[377671125,1754483438882,-500.0,0.00025573,2]
[377671126,1754483438892,-500.76397138,0.00025573,2]
[377671127,1754483438901,-500.0,0.00025573,2]
[377671128,1754483438911,-500.0,0.00025573,2]
[377671129,1754483438922,-500.0,0.00025573,2]
[377671130,1754483438931,-500.0,0.00025573,2]
[377671131,1754483438941,-348.10445271,0.00025573,2]
[377671132,1754483438950,-503.30987209,0.00025573,2]
[377671133,1754483438960,-8128.57019949,0.00025665,2]
[377671134,1754483438969,-2693.42111935,0.00025743,4]
[377671135,1754483438978,-338.0,0.00025775,2]
[377671136,1754483438988,-500.0,0.00025795,2]
[377671137,1754483438997,-8128.57019949,0.00025877,2]
[377671138,1754483439006,-242.447344,0.0002589,2]
[377671139,1754483439016,-196188.161089,0.0002597,2]
[377671140,1754483439025,-1408.83462471,0.0002597,2]
[377671141,1754483439035,-500.0,0.00025973,2]
[377671142,1754483439044,-500.0,0.00025973,2]
[377671143,1754483439054,-500.0,0.00025973,2]
[377671144,1754483439064,-150.0,0.00025973,2]
[377671145,1754483439073,-500.0,0.00025973,2]
[377671146,1754483439083,-500.0,0.00025973,2]
[377671147,1754483439092,-500.0,0.00025973,2]
[377671148,1754483439102,-500.0,0.00025973,2]
[377671149,1754483439111,-500.0,0.00025973,2]
[377671150,1754483439121,-500.0,0.00025973,2]
[377671151,1754483439130,-497.51130357,0.00025974,2]
[377671152,1754483439140,-469.61154157,0.0002598,2]
[377671153,1754483439149,-57476.31840798,0.0002599,2]
[377671154,1754483439159,-151.0,0.00026,11]
[377671155,1754483439170,-151.0,0.00026,19]
[377671156,1754483439179,-520.05139711,0.00026,2]
[377671157,1754483439194,-1656.930114,0.00026,30]
[377671158,1754483439205,-19900.0,0.00026,2]
[377671159,1754483439215,-16501.0,0.00026,2]
[377671160,1754483439224,-1500.0,0.00026068,2]
[377671161,1754483439235,-519.63095064,0.00026068,2]
[377671162,1754483439244,-1430.61356137,0.00026068,2]
[377671163,1754483439254,-989.77376666,0.00026068,2]
[377671164,1754483439263,-940.95886782,0.00026068,2]
[377671165,1754483439274,-1500.0,0.00026068,2]
[377671166,1754483439284,-1500.0,0.00026068,2]
[377671167,1754483439294,-1500.0,0.00026068,2]
[377671168,1754483439304,-500.0,0.00026068,2]
[377671169,1754483439315,-1049.64932361,0.00026068,2]
[377671170,1754483439325,-1254.34179559,0.00026068,2]
[377671171,1754483439335,-902.02018848,0.00026068,2]
[377671172,1754483439344,-389.6845564,0.00026068,2]
[377671173,1754483439353,-1513.23205736,0.00026068,2]
[377671174,1754483439362,-1500.0,0.00026068,2]
[377671175,1754483439372,-1500.0,0.00026068,2]
[377671176,1754483439381,-1500.0,0.00026068,2]
[377671177,1754483439391,-1500.0,0.00026068,2]
[377671178,1754483439400,-1500.0,0.00026068,2]
[377671179,1754483439409,-1500.0,0.00026068,2]
[377671180,1754483439420,-500.0,0.00026068,2]
[377671181,1754483439430,-8128.57019949,0.00026088,2]
[377671182,1754483439439,-151.0,0.000261,17]
[377671183,1754483439449,-151.0,0.000261,16]
[377671184,1754483439459,-151.0,0.000261,13]
[377671186,1754483439468,-939.22308314,0.000261,2]
[377671187,1754483439477,-469.61154157,0.00026111,2]
[377671188,1754483439486,-1000.0,0.00026121,2]
[377671189,1754483439496,-1000.0,0.00026121,2]
[377671190,1754483439505,-501.76023779,0.00026121,2]
[377671192,1754483439515,-294.97172485,0.00026121,2]
[377671195,1754483439524,-1000.0,0.00026121,2]
[377671198,1754483439534,-1000.0,0.00026121,2]
[377671201,1754483439544,-1000.0,0.00026121,2]
[377671204,1754483439553,-1000.0,0.00026121,2]
[377671207,1754483439562,-1000.0,0.00026121,2]
[377671209,1754483439574,-1000.0,0.00026121,2]
[377671211,1754483439584,-1000.0,0.00026121,2]
[377671213,1754483439593,-1000.0,0.00026121,2]
[377671215,1754483439602,-1000.0,0.00026121,2]
[377671217,1754483439612,-393.96397647,0.00026121,2]
[377671219,1754483439621,-1004.4610332,0.00026121,2]
[377671221,1754483439631,-1000.0,0.00026121,2]
[377671223,1754483439640,-1000.0,0.00026121,2]
[377671225,1754483439650,-1000.0,0.00026121,2]
[377671226,1754483439659,-1000.0,0.00026121,2]
[377671227,1754483439669,-945.82939739,0.00026121,2]
[377671228,1754483439678,-1000.0,0.00026121,2]
[377671229,1754483439687,-1004.52931059,0.00026121,2]
[377671230,1754483439697,-1000.0,0.00026121,2]
[377671231,1754483439706,-1001.70565741,0.00026121,2]
[377671232,1754483439715,-154.32672616,0.00026121,2]
[377671233,1754483439724,-1001.59326853,0.00026121,2]
[377671234,1754483439734,-413.16299039,0.00026121,2]
[377671235,1754483439743,-502.2046253,0.00026121,2]
[377671236,1754483439753,-1000.0,0.00026121,2]
[377671237,1754483439762,-191.0671024,0.0002616,2]
[377671238,1754483439771,-151.0,0.000262,20]
[377671239,1754483439780,-151.0,0.000262,12]
[377671240,1754483439790,-160.0,0.0002627,3]
[377671241,1754483439799,-461.26544088,0.0002627,3]
[377671242,1754483439809,-231.78005385,0.0002627,3]
[377671243,1754483439818,-160.0,0.0002627,3]
[377671244,1754483439828,-500.0,0.00026273,2]
[377671245,1754483439837,-500.0,0.00026273,2]
[377671246,1754483439846,-150.0,0.00026273,2]
[377671247,1754483439856,-501.7277461,0.00026273,2]
[377671248,1754483439866,-500.88626176,0.00026273,2]
[377671249,1754483439876,-500.0,0.00026273,2]
[377671250,1754483439885,-500.0,0.00026273,2]
[377671251,1754483439895,-150.0,0.00026273,2]
[377671252,1754483439906,-151.0,0.000263,15]
[377671253,1754483439915,-151.0,0.000263,17]
[377671254,1754483439925,-171.49866874,0.000263,2]
[377671255,1754483439934,-151.0,0.000263,18]
[377671256,1754483439945,-8128.57019949,0.000263,2]
[377671257,1754483439954,-9629.92732203,0.000263,2]
[377671258,1754483439964,-939.22308314,0.00026311,2]
[377671259,1754483439974,-300.0,0.0002632,2]
[377671260,1754483439983,-200.0,0.00026321,10]
[377671261,1754483439992,-200.0,0.00026321,10]
[377671262,1754483440002,-200.0,0.00026321,10]
[377671263,1754483440011,-200.0,0.00026321,10]
[377671264,1754483440020,-200.0,0.00026321,10]
[377671265,1754483440139,-200.0,0.00026321,10]
[377671266,1754483440149,-200.0,0.00026321,10]
[377671267,1754483440158,-200.0,0.00026321,10]
[377671268,1754483440167,-200.0,0.00026321,10]
[377671269,1754483440177,-200.0,0.00026321,10]
[377671270,1754483440187,-200.0,0.00026321,10]
[377671271,1754483440200,-200.0,0.00026321,10]
[377671272,1754483440209,-200.0,0.00026321,10]
[377671273,1754483440218,-200.0,0.00026321,10]
[377671274,1754483440227,-200.0,0.00026321,10]
[377671275,1754483440236,-200.0,0.00026321,10]
[377671276,1754483440245,-200.0,0.00026321,10]
[377671277,1754483440254,-200.0,0.00026321,10]
[377671278,1754483440263,-200.0,0.00026321,10]
[377671279,1754483440272,-200.0,0.00026321,10]
[377671280,1754483440282,-200.0,0.00026321,10]
[377671281,1754483440292,-200.0,0.00026321,10]
[377671282,1754483440301,-200.0,0.00026321,10]
[377671283,1754483440310,-228.527101,0.00026321,10]
[377671284,1754483440319,-469.61154157,0.00026322,2]
[377671285,1754483440329,-508.65591002,0.00026342,2]
[377671286,1754483440338,-500.0,0.00026373,2]
[377671287,1754483440347,-502.57888164,0.00026373,2]
[377671288,1754483440357,-500.0,0.00026373,2]
[377671289,1754483440366,-500.0,0.00026373,2]
[377671290,1754483440376,-150.0,0.00026373,2]
[377671291,1754483440385,-201.93691006,0.00026373,2]
[377671292,1754483440395,-160.0,0.0002638,3]
[377671293,1754483440404,-3014.165421,0.0002638,2]
[377671294,1754483440413,-160.0,0.0002638,3]
[377671295,1754483440423,-160.0,0.0002638,3]
[377671296,1754483440432,-160.0,0.0002638,2]
[377671297,1754483440441,-939.22308314,0.0002638,2]
[377671298,1754483440450,-2348.05770785,0.0002639,2]
[377671299,1754483440460,-34871.27,0.000264,2]
[377671300,1754483440469,-887427.44884534,0.000264,2]
[377671301,1754483440483,-26457.11115466,0.000264,2]
[377671302,1754483440492,-151.0,0.000264,20]
[377671303,1754483440501,-151.0,0.000264,14]
[377671304,1754483440510,-151.0,0.000264,12]
[377671305,1754483440519,-151.0,0.000264,16]
[377671306,1754483440528,-151.0,0.000264,14]
[377671307,1754483440537,-151.0,0.000264,10]
[377671308,1754483440546,-151.0,0.000264,13]
[377671309,1754483440555,-151.0,0.000264,13]
[377671310,1754483440567,-151.0,0.000264,15]
[377671311,1754483440576,-151.0,0.000264,14]
[377671312,1754483440585,-151.0,0.000264,18]
[377671313,1754483440594,-4305.65966179,0.00026407,2]
[377671314,1754483440603,-1000.0,0.00026521,2]
[377671315,1754483440613,-1003.64919299,0.00026521,2]
[377671316,1754483440622,-203.17003837,0.00026521,2]
[377671317,1754483440630,-669.08448313,0.00026521,2]
[377671318,1754483440640,-1000.0,0.00026521,2]
[377671319,1754483440649,-1007.44277897,0.00026521,2]
[377671320,1754483440658,-514.129,0.00026551,13]
[377671321,1754483440667,-179.36,0.00026551,13]
[377671322,1754483440677,-629.28878211,0.00026616,2]
[377671323,1754483440686,-2000.0,0.00026616,2]
[377671324,1754483440695,-2000.0,0.00026616,2]
[377671325,1754483440704,-2000.0,0.00026616,2]
[377671326,1754483440713,-2000.0,0.00026616,2]
[377671327,1754483440722,-2000.0,0.00026616,2]
[377671328,1754483440730,-604.34550906,0.00026616,2]
[377671329,1754483440739,-2000.0,0.00026616,2]
[377671330,1754483440749,-1009.38329096,0.00026616,2]
[377671331,1754483440758,-2000.0,0.00026616,2]
[377671332,1754483440767,-511.87637983,0.00026668,2]
[377671333,1754483440777,-678.23066169,0.00026668,2]
[377671334,1754483440786,-1500.0,0.00026668,2]
[377671335,1754483440795,-366.21517508,0.00026668,2]
[377671336,1754483440805,-1238.77104317,0.00026668,2]
[377671337,1754483440814,-1500.0,0.00026668,2]
[377671338,1754483440824,-508.93874443,0.00026668,2]
[377671339,1754483440834,-1500.0,0.00026668,2]
[377671340,1754483440843,-654.59097771,0.00026668,2]
[377671341,1754483440853,-1500.0,0.00026668,2]
[377671342,1754483440862,-1500.0,0.00026668,2]
[377671343,1754483440871,-502.17984503,0.00026668,2]
[377671344,1754483440880,-1500.0,0.00026668,2]
[377671345,1754483440890,-1500.0,0.00026668,2]
[377671346,1754483440900,-1500.0,0.00026668,2]
[377671347,1754483440909,-1500.0,0.00026668,2]
[377671348,1754483440919,-408.40515937,0.00026668,2]
[377671349,1754483440929,-1500.0,0.00026668,2]
[377671350,1754483440938,-209.569693,0.00026676,2]
[377671351,1754483440948,-2693.42111935,0.00026712,6]
[377671352,1754483440958,-242.447344,0.00026777,2]
[377671353,1754483440967,-3765.63258192,0.000268,3]
[377671354,1754483440978,-1000.0,0.00026821,2]
[377671355,1754483440987,-501.62627332,0.00026821,2]
[377671356,1754483440996,-250.0,0.00026821,2]
[377671358,1754483441006,-502.65613435,0.00026821,2]
[377671360,1754483441015,-276.06679903,0.00026821,2]
[377671362,1754483441025,-1000.0,0.00026921,2]
[377671364,1754483441034,-152.18536256,0.00026921,2]
[377671365,1754483441044,-10339.2,0.00026923,3]
[377671366,1754483441053,-5169.6,0.00026923,3]
[377671367,1754483441063,-2584.8,0.00026923,3]
[377671368,1754483441072,-1292.4,0.00026923,3]
[377671369,1754483441082,-646.2,0.00026923,3]
[377671370,1754483441091,-323.1,0.00026923,3]
[377671371,1754483441101,-216.47163855,0.00026923,3]
[377671372,1754483441110,-260.0,0.00026928,2]
[377671373,1754483441120,-160.0,0.00027,3]
[377671374,1754483441129,-160.0,0.00027,7]
[377671375,1754483441138,-160.0,0.00027,3]
[377671376,1754483441148,-160.0,0.00027,7]
[377671377,1754483441158,-36260.76215234,0.00027,2]
[377671378,1754483441167,-1593.0,0.00027049,2]
[377671379,1754483441178,-605.9184971,0.00027068,2]
[377671380,1754483441187,-500.0,0.00027068,2]
[377671381,1754483441201,-491.8380123,0.00027068,2]
[377671382,1754483441210,-2500.0,0.00027164,2]
[377671383,1754483441219,-1358.71937737,0.00027164,2]
[377671384,1754483441229,-2500.0,0.00027164,2]
[377671385,1754483441239,-2500.0,0.00027164,2]
[377671386,1754483441249,-1506.98484223,0.00027164,2]
[377671387,1754483441258,-2500.0,0.00027164,2]
[377671388,1754483441268,-2500.0,0.00027164,2]
[377671389,1754483441279,-1442.24641216,0.00027216,2]
[377671390,1754483441290,-435.7221146,0.00027216,2]
[377671391,1754483441299,-824.98209434,0.00027216,2]
[377671392,1754483441308,-154.39329513,0.00027216,2]
[377671393,1754483441317,-1010.79357348,0.00027216,2]
[377671394,1754483441326,-2004.75035478,0.00027216,2]
[377671395,1754483441335,-2000.0,0.00027216,2]
[377671396,1754483441345,-505.54184549,0.00027216,2]
[377671397,1754483441354,-2000.0,0.00027216,2]
[377671398,1754483441364,-2026.96917457,0.00027216,2]
[377671399,1754483441374,-125181.72364453,0.0002726,2]
[377671400,1754483441383,-156.702488,0.00027287,2]
[377671401,1754483441394,-1004.38137586,0.00027368,2]
[377671402,1754483441404,-350.0,0.00027368,2]
[377671403,1754483441413,-205.027795,0.00027388,2]
[377671404,1754483441424,-196.75229254,0.0002739,2]
[377671405,1754483441434,-1072.08,0.000274,7]
[377671406,1754483441443,-1843.19,0.000274,7]
[377671407,1754483441452,-1197.52,0.000274,2]
[377671408,1754483441462,-911.48,0.000274,7]
[377671409,1754483441471,-200.0,0.00027464,15]
[377671410,1754483441481,-300.0,0.00027464,15]
[377671411,1754483441490,-1500.0,0.00027468,5]
[377671412,1754483441500,-197.78,0.00027476,2]
[377671413,1754483441510,-156.480839,0.00027583,2]
[377671414,1754483441519,-156.702488,0.00027583,2]
[377671415,1754483441528,-461.26544088,0.0002764,3]
[377671416,1754483441538,-242.447344,0.00027664,2]
[377671417,1754483441547,-2693.42111935,0.00027682,8]
[377671418,1754483441556,-5684.63,0.00027702,2]
[377671419,1754483441567,-5684.63,0.00027702,2]
[377671420,1754483441576,-5684.63,0.00027702,2]
[377671421,1754483441585,-5684.63,0.00027702,2]
[377671422,1754483441595,-5684.63,0.00027702,2]
[377671423,1754483441604,-5684.63,0.00027702,2]
[377671424,1754483441613,-5684.63,0.00027702,2]
[377671425,1754483441623,-5684.63,0.00027702,2]
[377671426,1754483441632,-5684.63,0.00027702,2]
[377671427,1754483441641,-5684.63,0.00027702,2]
[377671428,1754483441651,-3000.0,0.00027712,5]
[377671429,1754483441661,-2516.30196721,0.00027712,5]
[377671430,1754483441671,-1509.08962621,0.00027712,5]
[377671431,1754483441680,-3000.0,0.00027712,5]
[377671432,1754483441690,-3000.0,0.00027712,5]
[377671433,1754483441699,-1000.0,0.00027753,2]
[377671434,1754483441709,-1000.0,0.00027753,2]
[377671435,1754483441719,-1000.0,0.00027753,2]
[377671436,1754483441728,-1000.0,0.00027753,2]
[377671437,1754483441737,-1000.0,0.00027753,2]
[377671438,1754483441747,-1000.0,0.00027753,2]
[377671439,1754483441758,-1000.0,0.00027753,2]
[377671440,1754483441767,-1000.0,0.00027753,2]
[377671441,1754483441776,-1000.0,0.00027753,2]
[377671442,1754483441786,-1135.77876408,0.00027753,2]
[377671443,1754483441795,-2500.0,0.00027764,5]
[377671444,1754483441805,-2500.0,0.00027764,5]
[377671445,1754483441815,-450.0,0.00027916,5]
[377671446,1754483441825,-683.69755715,0.0002798,2]
[377671447,1754483441834,-160.93899496,0.00027999,10]
[377671448,1754483441844,-160.0,0.00028,10]
[377671449,1754483441854,-160.0,0.00028,3]
[377671450,1754483441863,-461.26544088,0.00028,10]
[377671451,1754483441873,-461.26544088,0.00028,10]
[377671452,1754483441883,-312.16666667,0.00028,10]
[377671453,1754483441892,-216.47163855,0.00028,10]
[377671454,1754483441902,-500.0,0.00028016,5]
[377671455,1754483441912,-3500.0,0.0002826,5]
[377671456,1754483441923,-512.10199408,0.0002826,5]
[377671457,1754483441932,-3500.0,0.0002826,5]
[377671458,1754483441942,-3000.0,0.00028312,5]
[377671459,1754483441951,-3000.0,0.00028312,5]
[377671460,1754483441961,-252.62779819,0.00028464,5]
[377671461,1754483441971,-5684.63,0.00028633,2]
[377671462,1754483441980,-2693.42111935,0.00028652,10]
[377671463,1754483441989,-5684.63,0.00028699,2]
[377671464,1754483441998,-5684.63,0.00028705,2]
[377671465,1754483442007,-156.702488,0.00028738,3]
[377671466,1754483442016,-5684.63,0.00028786,2]
[377671467,1754483442025,-5684.63,0.00028796,2]
[377671468,1754483442035,-1948.27829967,0.00028796,2]
[377671469,1754483442163,-2420.5113043,0.00028796,2]
[377671470,1754483442194,-1315.84039603,0.00028796,2]
[377671471,1754483442203,-133.40951397,0.00028796,2]
[377671472,1754483442214,-5551.22048603,0.00028796,2]
[377671473,1754483442224,-5684.63,0.00028796,2]
[377671474,1754483442233,-5684.63,0.00028796,2]
[377671475,1754483442243,-5684.63,0.00028796,2]
[377671476,1754483442252,-5684.63,0.00028796,2]
[377671477,1754483442262,-5684.63,0.00028796,2]
[377671478,1754483442272,-5684.63,0.00028796,2]
[377671479,1754483442281,-5684.77794068,0.00028796,2]
[377671480,1754483442291,-1495.55245596,0.00028808,5]
[377671481,1754483442301,-1000.0,0.00028808,5]
[377671482,1754483442311,-1049.81663842,0.0002886,5]
[377671497,1754483442719,-1010.14795032,0.0002886,5]
[377671502,1754483443290,-263.38208401,0.0002886,5]
[377671503,1754483443302,-1176.65332725,0.0002886,5]
[377671504,1754483443311,-2952.23939005,0.0002886,5]
[377671512,1754483668062,150.5,0.00028978,120]
[377671513,1754483789933,408.0,0.00028978,120]
[377671514,1754483790376,408.0,0.00028968,120]
[377671515,1754483790882,408.0,0.00028958,120]
[377671516,1754483922110,2372.99690196,0.00024551,2]
[377671517,1754483922133,674.43309804,0.00024551,2]
[377671518,1754484162745,198.17235,0.00013699,2]
[377671519,1754484162972,198.17235,0.00020187,2]
[377671521,1754484296215,150.0,0.00024551,2]
[377671522,1754484315324,322.8,0.00030137,120]
[377671524,1754484382494,1029.34,0.000251,14]
[377671525,1754484385996,205.027795,0.00024489,2]
[377671526,1754484438063,-187.98179158,0.00025,7]
[377671527,1754484455911,1343.773754,0.00024495,2]
[377671528,1754484509931,358.0,0.00028978,120]
[377671529,1754484510378,358.0,0.00028968,120]
[377671530,1754484510853,358.0,0.00028958,120]
[377671531,1754484543276,2968.1406592,0.00024503,2]
[377671578,1754484632564,-1842.6064853,0.00025,7]
[377671581,1754484632574,-181.0231983,0.00025301,2]
[377671584,1754484632583,-2251.38072451,0.0002533,3]
[377671587,1754484632592,-1837.55379381,0.00025431,2]
[377671590,1754484632602,-300.0,0.00025529,2]
[377671593,1754484632612,-166.0,0.00025529,2]
[377671596,1754484632622,-250.0,0.00025529,2]
[377671598,1754484632631,-300.0,0.00025529,2]
[377671600,1754484632640,-398.20376737,0.00025529,2]
[377671603,1754484632650,-300.0,0.0002553,2]
[377671606,1754484632659,-500.0,0.0002553,2]
[377671609,1754484632669,-500.0,0.0002553,2]
[377671612,1754484632678,-490.79340659,0.0002553,2]
[377671615,1754484632688,-500.0,0.0002553,2]
[377671618,1754484632700,-500.0,0.0002553,2]
[377671620,1754484632709,-284.7822723,0.0002553,2]
[377671622,1754484632719,-500.0,0.0002553,2]
[377671624,1754484632728,-500.0,0.0002553,2]
[377671626,1754484632738,-500.0,0.0002553,2]
[377671628,1754484632747,-500.0,0.0002553,2]
[377671630,1754484632756,-500.0,0.0002553,2]
[377671632,1754484632766,-500.0,0.0002553,2]
[377671634,1754484632776,-500.0,0.0002553,2]
[377671636,1754484632786,-500.0,0.0002553,2]
[377671638,1754484632796,-500.0,0.0002553,2]
[377671640,1754484632806,-500.0,0.0002553,2]
[377671642,1754484632816,-500.0,0.0002553,2]
[377671644,1754484632826,-500.0,0.0002553,2]
[377671646,1754484632835,-500.0,0.0002553,2]
[377671648,1754484632846,-500.0,0.0002553,2]
[377671650,1754484632855,-500.0,0.0002553,2]
[377671652,1754484632864,-237.16346173,0.0002553,2]
[377671654,1754484632874,-500.0,0.0002553,2]
[377671656,1754484632883,-399.53279616,0.0002553,2]
[377671658,1754484632893,-50000.0,0.0002553,2]
[377671660,1754484632902,-24900.0,0.00025533,2]
[377671662,1754484632911,-500.0,0.00025573,2]
[377671663,1754484632920,-500.0,0.00025573,2]
[377671664,1754484632929,-245.65820441,0.00025573,2]
[377671665,1754484632938,-500.0,0.00025573,2]
[377671666,1754484632948,-1444.0447244,0.00025667,2]
[377671667,1754484632957,-1055.33012957,0.00026121,2]
[377671668,1754484632970,-36.5484748,0.00026121,2]
[377671670,1754484632980,-1000.0,0.00026121,2]
[377671672,1754484632990,-503.63795787,0.00026121,2]
[377671674,1754484633000,-315.22,0.0002624,10]
[377671675,1754484633009,-201.89,0.0002625,10]
[377671676,1754484633018,-262.69,0.0002626,10]
[377671677,1754484633028,-3244.89844661,0.0002627,2]
[377671678,1754484633043,-3731.53561008,0.0002627,2]
[377671679,1754484638109,-67161.46674211,0.0002627,2]
[377671680,1754484638119,-470.3508396,0.00026273,2]
[377671681,1754484638129,-500.0,0.00026273,2]
[377671682,1754484638137,-1000.0,0.0002628,2]
[377671683,1754484638147,-1000.0,0.0002628,2]
[377671684,1754484638156,-1000.0,0.0002628,2]
[377671685,1754484638165,-1000.0,0.0002628,2]
[377671686,1754484638174,-1000.0,0.0002628,2]
[377671687,1754484638184,-1000.0,0.0002628,2]
[377671688,1754484638194,-1000.0,0.0002628,2]
[377671689,1754484638203,-1000.0,0.0002628,2]
[377671690,1754484638213,-1000.0,0.0002628,2]
[377671691,1754484638223,-500.0,0.0002628,2]
[377671692,1754484638233,-2251.38072449,0.00026281,5]
[377671693,1754484638242,-1000.0,0.00026289,2]
[377671694,1754484638251,-1000.0,0.00026369,2]
[377671695,1754484638260,-1000.0,0.00026369,2]
[377671696,1754484638269,-1000.0,0.00026369,2]
[377671697,1754484638278,-511.19332672,0.00026369,2]
[377671698,1754484638287,-1094.44967063,0.000264,2]
[377671699,1754484638296,-411.303,0.00026497,13]
[377671700,1754484638305,-500.0,0.00026573,2]
[377671701,1754484638315,-500.0,0.00026573,2]
[377671702,1754484638324,-74137.9007988,0.00026586,2]
[377671703,1754484638334,-1502.58499416,0.00026668,2]
[377671704,1754484638343,-198.17235,0.00026676,2]
[377671705,1754484638353,-2667.13996759,0.00027021,2]
[377671707,1754484638362,-74137.9007988,0.00027106,2]
[377671709,1754484638371,-1000.0,0.00027121,2]
[377671711,1754484638381,-1000.0,0.00027121,2]
[377671713,1754484638390,-2251.38072449,0.00027232,7]
[377671715,1754484638400,-3999.59765669,0.00027558,2]
[377671717,1754484638409,-420.0,0.00027642,2]
[377671718,1754484638418,-1500.0,0.00027668,5]
[377671719,1754484638427,-1500.0,0.00027668,5]
[377671720,1754484638437,-461.26544088,0.00028,10]
[377671721,1754484638445,-312.16666667,0.00028,10]
[377671722,1754484638455,-216.47163855,0.00028,10]
[377671723,1754484638464,-45000.0,0.00028,2]
[377671724,1754484638474,-279.83261619,0.0002807,2]
[377671725,1754484638484,-200.0,0.00028083,15]
[377671726,1754484638497,-300.0,0.00028083,15]
[377671727,1754484638506,-2251.38072449,0.00028182,9]
[377671728,1754484638516,-1412.49617764,0.00028216,5]
[377671729,1754484638525,-2000.0,0.00028216,5]
[377671730,1754484638534,-2667.13996756,0.00028315,2]
[377671731,1754484638544,-151.0,0.000285,14]
[377671732,1754484638553,-151.0,0.000287,11]
[377671733,1754484638562,-2500.0,0.00028764,5]
[377671734,1754484638571,-74137.9007988,0.00028778,2]
[377671735,1754484638581,-160.0,0.00028788,2]
[377671736,1754484638591,-12657.93264304,0.00028788,2]
[377671737,1754484638600,-160.0,0.00028788,2]
[377671738,1754484638610,-160.0,0.00028788,2]
[377671739,1754484638620,-842.45170444,0.00028788,2]
[377671740,1754484638633,-160.0,0.00028788,2]
[377671741,1754484638642,-216.47163855,0.00028788,2]
[377671742,1754484638651,-160.0,0.00028788,2]